fUSD/lending_fUSD_20241019
["ID","MTS","AMOUNT","RATE_DAILY","PERIOD"]
[340501658,1729360243568,-151.0,0.00024977,7]
[340501659,1729360243577,-511.568454,0.00024977,7]
[340501660,1729360243586,-151.0,0.00024977,7]
[340501661,1729360243596,-151.0,0.00024977,7]
[340501662,1729360243606,-151.0,0.00024977,7]
[340501663,1729360243616,-151.0,0.00024977,7]
[340501664,1729360243626,-151.0,0.00024977,7]
[340501666,1729360243635,-758.484868,0.00024977,7]
[340501667,1729360243644,-758.484868,0.00024977,7]
[340501668,1729360243653,-251.787095,0.00024977,7]
[340501669,1729360243663,-226.077714,0.00024977,7]
[340501670,1729360243672,-151.0,0.00024977,7]
[340501671,1729360243681,-231.844468,0.00024977,7]
[340501672,1729360243691,-600.0,0.00024977,9]
[340501673,1729360243701,-600.0,0.00024977,9]
[340501674,1729360243711,-600.0,0.00024977,9]
[340501675,1729360243720,-600.0,0.00024977,9]
[340501676,1729360243729,-600.0,0.00024977,9]
[340501677,1729360243738,-600.0,0.00024977,9]
[340501678,1729360243748,-600.0,0.00024977,9]
[340501679,1729360243757,-600.0,0.00024977,9]
[340501680,1729360243766,-600.0,0.00024977,9]
[340501681,1729360243776,-660.33199655,0.00024977,9]
[340501682,1729360243785,-600.0,0.00024977,9]
[340501683,1729360243801,-600.0,0.00024977,9]
[340501684,1729360243811,-600.0,0.00024977,9]
[340501685,1729360243821,-600.0,0.00024977,9]
[340501686,1729360243831,-600.0,0.00024977,9]
[340501687,1729360243841,-600.0,0.00024977,9]
[340501688,1729360243851,-600.0,0.00024977,9]
[340501689,1729360243861,-600.0,0.00024977,9]
[340501690,1729360243870,-600.0,0.00024977,9]
[340501691,1729360243880,-610.84139589,0.00024977,9]
[340501692,1729360243890,-2500.0,0.00024982,2]
[340501693,1729360243899,-500.0,0.00024982,2]
[340501694,1729360243908,-500.0,0.00024982,2]
[340501695,1729360243919,-500.0,0.00024982,2]
[340501696,1729360243928,-462.56,0.00024982,2]
[340501697,1729360243939,-5458.6678156,0.00024983,2]
[340501698,1729360243948,-6781.8007801,0.00024983,2]
[340501699,1729360243958,-8104.9337447,0.00024983,2]
[340501700,1729360243968,-9428.0667093,0.00024983,2]
[340501701,1729360243978,-1974.3668829,0.00024983,2]
[340501702,1729360243988,-2452.9360129,0.00024983,2]
[340501703,1729360243998,-2931.5051428,0.00024983,2]
[340501704,1729360244008,-3410.0742727,0.00024983,2]
[340501705,1729360244017,-38653.2845364,0.00024983,2]
[340501706,1729360244027,-48022.5000093,0.00024983,2]
[340501707,1729360244037,-57391.7154821,0.00024983,2]
[340501708,1729360244052,-66760.930955,0.00024983,2]
[340501709,1729360244067,-2500.0,0.00024985,2]
[340501710,1729360244078,-2500.0,0.00024985,2]
[340501711,1729360244088,-151.0,0.00024986,7]
[340501712,1729360244099,-151.0,0.00024986,7]
[340501713,1729360244110,-151.0,0.00024986,7]
[340501714,1729360244120,-151.0,0.00024986,7]
[340501715,1729360244130,-151.0,0.00024986,7]
[340501716,1729360244140,-151.0,0.00024986,7]
[340501717,1729360244150,-151.0,0.00024986,7]
[340501718,1729360244160,-521.677531,0.00024986,7]
[340501719,1729360244170,-521.677531,0.00024986,7]
[340501720,1729360244180,-151.0,0.00024986,7]
[340501721,1729360244190,-151.0,0.00024986,7]
[340501722,1729360244200,-164.356048,0.00024986,7]
[340501723,1729360244210,-151.0,0.00024986,7]
[340501724,1729360244220,-151.0,0.00024986,7]
[340501725,1729360244230,-151.0,0.00024986,7]
[340501726,1729360244241,-511.568454,0.00024986,7]
[340501727,1729360244251,-151.0,0.00024986,7]
[340501728,1729360244262,-151.0,0.00024986,7]
[340501729,1729360244272,-151.0,0.00024986,7]
[340501730,1729360244282,-151.0,0.00024986,7]
[340501731,1729360244292,-758.484868,0.00024986,7]
[340501732,1729360244303,-758.484868,0.00024986,7]
[340501733,1729360244313,-151.0,0.00024986,7]
[340501734,1729360244323,-164732.0,0.00024986,2]
[340501735,1729360244333,-308441.0,0.00024986,2]
[340501736,1729360244343,-151.49,0.0002499,2]
[340501737,1729360244353,-151.49,0.0002499,2]
[340501738,1729360244363,-151.49,0.0002499,2]
[340501739,1729360244373,-151.49,0.0002499,2]
[340501740,1729360244384,-202.0,0.00024996,2]
[340501741,1729360244394,-202.0,0.00024996,2]
[340501742,1729360244403,-202.0,0.00024996,2]
[340501743,1729360244412,-202.0,0.00024996,2]
[340501744,1729360244422,-202.0,0.00024996,2]
[340501745,1729360244432,-202.0,0.00024996,2]
[340501746,1729360244443,-202.0,0.00024996,2]
[340501747,1729360244453,-204.0,0.00024996,2]
[340501748,1729360244464,-204.0,0.00024996,2]
[340501749,1729360244474,-204.0,0.00024996,2]
[340501750,1729360244485,-204.0,0.00024996,2]
[340501751,1729360244495,-204.0,0.00024996,2]
[340501752,1729360244505,-204.0,0.00024996,2]
[340501753,1729360244515,-204.0,0.00024996,2]
[340501754,1729360244525,-204.0,0.00024996,2]
[340501755,1729360244536,-204.0,0.00024996,2]
[340501756,1729360244547,-204.0,0.00024996,2]
[340501757,1729360244557,-204.0,0.00024996,2]
[340501758,1729360244568,-204.0,0.00024996,2]
[340501759,1729360244579,-204.0,0.00024996,2]
[340501760,1729360244589,-158.334394,0.00024996,2]
[340501761,1729360244600,-500.0,0.00024999,3]
[340501762,1729360244610,-2500.0,0.00024999,2]
[340501763,1729360244620,-2500.0,0.00024999,2]
[340501764,1729360244631,-2401.75,0.00024999,2]
[340501765,1729360244641,-50000.0,0.00025,4]
[340501766,1729360244651,-50000.0,0.00025,5]
[340501767,1729360244662,-50000.0,0.00025,6]
[340501768,1729360244672,-50000.0,0.00025,7]
[340501769,1729360244683,-1259524.6468718,0.00025,2]
[340501772,1729360246060,-621.0,0.00024999,2]
[340501773,1729360246071,-11400.00945046,0.00025,2]
[340501774,1729360246118,-114642.30796364,0.00025,2]
[340501775,1729360246235,-5017.54622921,0.00025,2]
[340501776,1729360246246,-4465.82831233,0.00025,2]
[340501777,1729360246258,-4943.43172972,0.00025,2]
[340501778,1729360246295,-660.15610959,0.00025,2]
[340501779,1729360246353,-511.51386836,0.00025,2]
[340501781,1729360246364,-337.975,0.00025,2]
[340501785,1729360428758,154.8,0.00026949,120]
[340501788,1729361253041,-334.52700835,0.000108,2]
[340501789,1729361253066,-150.0,0.0001089,2]
[340501790,1729361253091,-1419.5675,0.000109,2]
[340501791,1729361253117,-292.7514,0.000109,2]
[340501792,1729361253143,-164.55,0.00010959,2]
[340501793,1729361253168,-156.44,0.00010959,2]
[340501794,1729361253193,-1082.16409165,0.00010959,2]
[340501798,1729361365126,-150.0,0.00010956,2]
[340501799,1729361365146,-287.78716393,0.00016438,2]
[340501800,1729361365165,-199.69,0.00016438,2]
[340501806,1729361376219,199.69,0.00016438,2]
[340501807,1729361389334,150.0,0.0001726,2]
[340501811,1729361432362,-347.40099992,0.00021387,2]
[340501812,1729361432466,-91.26900008,0.00021387,2]
[340501813,1729361432476,-375.0,0.00021917,2]
[340501814,1729361432486,-1000.0,0.00023197,2]
[340501815,1729361432496,-150.99,0.00023197,2]
[340501816,1729361432505,-499.99,0.00023197,2]
[340501817,1729361432515,-1382.2566,0.00023209,2]
[340501818,1729361432524,-250.0,0.00023221,2]
[340501819,1729361432533,-150.99,0.00023221,2]
[340501820,1729361432542,-250.0,0.0002323,2]
[340501821,1729361432552,-18603.0619942,0.00023309,2]
[340501822,1729361432563,-1218.07657921,0.00023309,2]
[340501823,1729361432575,-3115.7060839,0.00023309,2]
[340501824,1729361432586,-963.15534269,0.00023309,2]
[340501825,1729361432595,-792.27,0.00023309,2]
[340501826,1729361432604,-150.0,0.00023352,2]
[340501827,1729361432614,-160.9715579,0.00023473,2]
[340501829,1729361432623,-250.0,0.00023558,2]
[340501831,1729361432632,-438.67,0.00023651,2]
[340501833,1729361432641,-1319.481,0.00023658,2]
[340501835,1729361432650,-150.0,0.00023658,2]
[340501837,1729361432660,-154.8,0.00023955,2]
[340501839,1729361432669,-210.32,0.00024,2]
[340501841,1729361432678,-500.23482677,0.00024,2]
[340501843,1729361432687,-150.0,0.00024192,2]
[340501845,1729361432697,-429.93691773,0.0002443,2]
[340501847,1729361432708,-330.78108227,0.0002443,2]
[340501849,1729361432717,-223.59089167,0.00024657,2]
[340501851,1729361432728,-499.6,0.00024657,2]
[340501853,1729361432739,-26.80910833,0.00024657,2]
[340501855,1729361432749,-500.0,0.00024658,7]
[340501857,1729361432758,-150.0,0.00024676,2]
[340501859,1729361432768,-73.09149167,0.000247,2]
[340501861,1729361432779,-1000.3932,0.000247,2]
[340501864,1729361432790,-1000.395,0.000247,2]
[340501866,1729361432802,-1072.15310833,0.000247,2]
[340501868,1729361432811,-272.45913709,0.000248,2]
[340501870,1729361432820,-8957.9276,0.000248,2]
[340501872,1729361432831,-13430.6738,0.000248,2]
[340501874,1729361432841,-16203.65357447,0.000248,2]
[340501877,1729361432859,-404.0,0.000248,2]
[340501905,1729361438517,-6474.80949044,0.000248,2]
[340501906,1729361438528,-3056.4019024,0.000248,2]
[340501911,1729361440241,-847.9,0.000248,2]
[340501912,1729361440337,-311.64,0.000248,2]
[340501913,1729361440349,-2726.57533269,0.000248,2]
[340501914,1729361440358,-2215.89224717,0.000248,2]
[340501915,1729361440370,-1339.79475283,0.000248,2]
[340501916,1729361440379,-500.13816814,0.000248,6]
[340501917,1729361440388,-1000.0,0.000248,2]
[340501918,1729361440397,-2500.0,0.000248,2]
[340501919,1729361440407,-500.0,0.000248,2]
[340501920,1729361440416,-500.0,0.000248,2]
[340501921,1729361440424,-660.05057398,0.000248,2]
[340501922,1729361440435,-336.52116068,0.000248,2]
[340501923,1729361440445,-500.0,0.000248,2]
[340501924,1729361440455,-996.57173463,0.00024811,2]
[340501925,1729361440464,-996.57173463,0.00024822,2]
[340501926,1729361440473,-13973.285,0.00024831,8]
[340501927,1729361440482,-996.57173463,0.00024833,2]
[340501928,1729361440491,-996.57173463,0.00024844,2]
[340501929,1729361440501,-561.1196419,0.00024873,2]
[340501930,1729361440511,-151.94,0.00024877,30]
[340501931,1729361440521,-7500.0,0.0002488,2]
[340501932,1729361440530,-236.9904229,0.00024889,2]
[340501933,1729361440539,-3692.5629,0.0002489,2]
[340501934,1729361440550,-500.0,0.0002489,2]
[340501935,1729361440561,-1000.0,0.0002489,2]
[340501936,1729361440570,-2339.911646,0.0002489,2]
[340501937,1729361440581,-263.494,0.0002489,2]
[340501938,1729361440595,-885.4064957,0.0002489,2]
[340501950,1729361443349,-7345.5574327,0.0002489,2]
[340501960,1729361443444,-392.1824256,0.0002489,2]
[340501962,1729361443454,-790.4274,0.0002489,2]
[340501964,1729361443463,-2538.3461,0.0002489,2]
[340501965,1729361443472,-236.99042289,0.00024891,2]
[340501966,1729361443482,-236.99042289,0.00024892,2]
[340501967,1729361443491,-236.99042289,0.00024894,2]
[340501968,1729361443500,-236.99042289,0.00024895,2]
[340501969,1729361443510,-236.99042289,0.00024897,2]
[340501970,1729361443519,-204.1009492,0.00024897,2]
[340501971,1729361443529,-500.0,0.00024897,2]
[340501972,1729361443538,-227.791929,0.00024897,2]
[340501973,1729361443548,-236.99042289,0.00024898,2]
[340501974,1729361443557,-10054.13024078,0.000249,2]
[340501975,1729361443569,-1580.77297284,0.000249,2]
[340501976,1729361443580,-434.12000044,0.000249,2]
[340501977,1729361443591,-765.12087331,0.000249,2]
[340501978,1729361443603,-1974.72661263,0.000249,2]
[340501979,1729361443612,-9930.45809116,0.000249,2]
[340501980,1729361443656,-2037.77890884,0.000249,2]
[340501981,1729361443665,-497.2572,0.000249,2]
[340501982,1729361443675,-290.3734,0.000249,2]
[340501983,1729361443685,-2324.8455,0.000249,2]
[340501984,1729361443695,-8023.5353233,0.000249,2]
[340501985,1729361443717,-592.3622745,0.000249,2]
[340501986,1729361443728,-1135.73007,0.000249,2]
[340501987,1729361443739,-710.0,0.000249,2]
[340502000,1729361446314,-996.57173463,0.00024856,2]
[340502001,1729361446324,-2111.37329852,0.000249,2]
[340502002,1729361446335,-283.83765539,0.000249,2]
[340502003,1729361446350,-27559.47747829,0.000249,2]
[340502004,1729361446359,-1020.4687,0.000249,2]
[340502005,1729361446369,-35609.0809501,0.000249,2]
[340502006,1729361446426,-3022.6575499,0.000249,2]
[340502007,1729361446435,-160.60793925,0.000249,2]
[340502008,1729361446444,-150.0,0.000249,13]
[340502009,1729361446454,-236.99042289,0.000249,2]
[340502010,1729361446463,-2112.6184572,0.0002498,5]
[340502011,1729361446474,-255.00000002,0.0002498,5]
[340502012,1729361446486,-608.21731146,0.0002498,5]
[340502013,1729361446497,-1695.17649978,0.0002498,5]
[340502014,1729361446518,-631.49999999,0.0002498,5]
[340502015,1729361446530,-752.9375,0.0002498,5]
[340502016,1729361446611,-1665.89,0.0002498,5]
[340502017,1729361446622,-281.74546058,0.0002498,5]
[340502018,1729361446637,-3576.2778305,0.0002498,5]
[340502019,1729361446648,-12078.39030516,0.0002498,5]
[340502023,1729361461283,250.0,0.0001,2]
[340502024,1729361462624,300.0,0.00012,2]
[340502025,1729361463467,350.0,0.00014,2]
[340502026,1729361464553,400.0,0.00016,2]
[340502027,1729361465654,450.0,0.00018,2]
[340502029,1729362427138,-858.23775069,0.0001079,2]
[340502030,1729362436088,-788.907531,0.00010736,2]
[340502031,1729362436108,-96.46009736,0.0001079,2]
[340502033,1729362554139,-3249.61949075,0.0001079,2]
[340502034,1729362554160,-7121.89547943,0.0001079,2]
[340502035,1729362554181,-540.0,0.0001089,2]
[340502036,1729362554202,-165.19,0.00010959,2]
[340502037,1729362554222,-500.0,0.00010973,2]
[340502038,1729362554242,-160.55229387,0.00010973,2]
[340502039,1729362554263,-150.0,0.00010999,2]
[340502040,1729362554283,-500.0,0.00010999,2]
[340502041,1729362554303,-185.07101253,0.00010999,2]
[340502042,1729362554327,-48319.80156534,0.00011,2]
[340502051,1729362631685,-300.0,0.00010999,2]
[340502052,1729362631697,-4274.0,0.00011,2]
[340502053,1729362631771,-1433.92938975,0.00011,2]
[340502054,1729362631783,-53043.3598293,0.00011,2]
[340502055,1729362631795,-223034.12268889,0.00011,2]
[340502062,1729362637654,-534.8314,0.00011,2]
[340502063,1729362637666,-669.0,0.00011,2]
[340502064,1729362637677,-572.09366565,0.00011,2]
[340502065,1729362637688,-585.3859411,0.00011,2]
[340502066,1729362637732,-6010.35442655,0.00011,2]
[340502067,1729362637816,-9202.73497705,0.00011,2]
[340502134,1729362639521,-535.536,0.00011,2]
[340502135,1729362639532,-7675.96415364,0.00011,2]
[340502136,1729362639543,-2054.0135915,0.00011,2]
[340502137,1729362639555,-2846.61473166,0.00011,2]
[340502138,1729362639606,-300.22885422,0.00011,2]
[340502139,1729362639715,-37873.63703836,0.00011,2]
[340502140,1729362639726,-16774.48199999,0.00011,2]
[340502144,1729362642501,-625312.47176103,0.00011,2]
[340502145,1729362642515,-489.29187735,0.00011,2]
[340502146,1729362642526,-3075.72210345,0.00011,2]
[340502147,1729362642537,-22212.84406301,0.00011,2]
[340502148,1729362642550,-676.09647408,0.00011,2]
[340502149,1729362642561,-10071.59929662,0.00011,2]
[340502150,1729362642572,-701.666667,0.00011,2]
[340502151,1729362642642,-27249.99999861,0.00011,2]
[340502152,1729362642653,-1006.62630079,0.00011,2]
[340502153,1729362642664,-352.72799642,0.00011,2]
[340502154,1729362642675,-1269.9797806,0.00011,2]
[340502155,1729362642687,-1175.26064,0.00011,2]
[340502156,1729362642697,-13092.63179293,0.00011,2]
[340502157,1729362642741,-169361.50915493,0.00011,2]
[340502158,1729362642824,-2520.34971303,0.00011,2]
[340502159,1729362642835,-675.26754251,0.00011,2]
[340502168,1729362645510,-272.83464667,0.00011,2]
[340502169,1729362645522,-511.28557088,0.00011,2]
[340502170,1729362645591,-1821.52057782,0.00011,2]
[340502171,1729362645672,-2399.99999999,0.00011,2]
[340502207,1729363269169,250.0,0.0001,2]
[340502208,1729363581531,180.81,8.67e-05,2]
[340502209,1729363634116,-263.57125331,0.00010573,2]
[340502210,1729363637168,-71.12193164,0.00010573,2]
[340502211,1729363637188,-263.40803313,0.00010673,2]
[340502212,1729363645097,-654.59196687,0.00010673,2]
[340502213,1729363645117,-150.0,0.00010706,2]
[340502214,1729363645138,-300.0,0.00010876,2]
[340502215,1729363645158,-102.37167062,0.00010877,2]
[340502220,1729363745205,554.16,9.304e-05,2]
[340502242,1729363831608,-47.62832938,0.00010877,2]
[340502243,1729363831618,-150.0,0.00010899,2]
[340502244,1729363831628,-300.0,0.00010899,2]
[340502245,1729363831638,-41.25167062,0.000109,2]
[340502246,1729363831650,-1048.4055,0.000109,2]
[340502247,1729363831666,-1108.19691343,0.000109,2]
[340502248,1729363831738,-669.11,0.000109,2]
[340502249,1729363831750,-926.26473678,0.000109,2]
[340502250,1729363831849,-216.93277917,0.000109,2]
[340502251,1729363831859,-160.60793925,0.000109,2]
[340502252,1729363831868,-1146.09656608,0.000109,2]
[340502253,1729363831879,-495.89243392,0.000109,2]
[340502254,1729363831888,-182.1578,0.000109,2]
[340502255,1729363831897,-1921.65588896,0.000109,2]
[340502256,1729363831906,-181.676046,0.000109,2]
[340502257,1729363831917,-1.24812528,0.000109,2]
[340502258,1729363831926,-3838.1946281,0.000109,2]
[340502259,1729363831938,-39788.8344719,0.000109,2]
[340502260,1729363831948,-18254.66291382,0.000109,2]
[340502261,1729363831959,-184.51752879,0.000109,2]
[340502262,1729363831968,-692.86,0.00010929,2]
[340502263,1729363831977,-162.94,0.00010959,2]
[340502265,1729363831987,-1500.0,0.00010959,2]
[340502267,1729363831996,-156.44,0.00010959,2]
[340502269,1729363832005,-160.81868333,0.00010973,2]
[340502270,1729363832014,-150.99,0.00010973,2]
[340502271,1729363832023,-477.51,0.00010973,2]
[340502272,1729363832032,-242.21393067,0.00010973,2]
[340502273,1729363832041,-229.25667007,0.0001099,2]
[340502274,1729363832050,-11345.381,0.00010999,2]
[340502275,1729363832059,-177.372,0.00010999,2]
[340502276,1729363832068,-499.99,0.00010999,2]
[340502277,1729363832077,-830.8,0.00010999,2]
[340502278,1729363832086,-257.04620124,0.00010999,2]
[340502279,1729363832095,-261.74,0.00010999,2]
[340502280,1729363832103,-299.99,0.00010999,2]
[340502281,1729363832113,-223445.15608488,0.00011,2]
[340502282,1729363832124,-36866.25877717,0.00011,2]
[340502283,1729363832135,-323.65435224,0.00011,2]
[340502284,1729363832145,-749.90013726,0.00011,2]
[340502285,1729363832156,-3040.21994748,0.00011,2]
[340502286,1729363837728,-164.38861932,0.000109,2]
[340502287,1729363837737,-91.04813568,0.000109,2]
[340502288,1729363837749,-63.3385449,0.000109,2]
[340502289,1729363837761,-1593.63085543,0.00011,2]
[340502290,1729363837773,-726.06500125,0.00011,2]
[340502291,1729363837841,-515.72,0.00011,2]
[340502292,1729363837853,-586.27968751,0.00011,2]
[340502293,1729363837868,-500.0,0.00011,2]
[340502294,1729363837880,-1686.66417853,0.00011,2]
[340502295,1729363837891,-863.89819992,0.00011,2]
[340502296,1729363837903,-8714.22227967,0.00011,2]
[340502297,1729363838216,-134.10707064,0.00011,2]
[340502298,1729363838228,-5496.59907277,0.00011,2]
[340502299,1729363838239,-59683.06608093,0.00011,2]
[340502344,1729363839861,-27263.43472826,0.00011,2]
[340502350,1729363842785,-75701.04702817,0.00011,2]
[340502351,1729363842796,-1295.62765177,0.00011,2]
[340502352,1729363842808,-3075.90905157,0.00011,2]
[340502353,1729363842819,-835.04991627,0.00011,2]
[340502354,1729363842847,-589.41582582,0.00011,2]
[340502355,1729363842858,-5150.83994801,0.00011,2]
[340502356,1729363842874,-3986.03595957,0.00011,2]
[340502357,1729363842885,-3799.999993,0.00011,2]
[340502358,1729363842897,-2743.43994,0.00011,2]
[340502359,1729363842908,-932.50624994,0.00011,2]
[340502360,1729363842919,-30212.7170874,0.00011,2]
[340502361,1729363842929,-674.74381166,0.00011,2]
[340502362,1729363842941,-660.19,0.00011,2]
[340502363,1729363842953,-2204.45423647,0.00011,2]
[340502364,1729363842964,-5412.53384887,0.00011,2]
[340502365,1729363842975,-512.00786555,0.00011,2]
[340502366,1729363842986,-513.18500005,0.00011,2]
[340502399,1729363845729,-1567.525,0.00011,2]
[340502400,1729363845740,-645.962345,0.00011,2]
[340502401,1729363845755,-315.79999999,0.00011,2]
[340502402,1729363845768,-317.55461225,0.00011,2]
[340502403,1729363845860,-12484.11238078,0.00011,2]
[340502404,1729363845871,-272.81514136,0.00011,2]
[340502405,1729363845883,-63634.04290568,0.00011,2]
[340502406,1729363845962,-1650.24238056,0.00011,2]
[340502407,1729363845973,-3247.21651196,0.00011,2]
[340502474,1729364179467,180.81,8.173e-05,2]
[340502475,1729364251817,250.0,0.00010248,2]
[340502476,1729364266804,191.68,0.00010264,2]
[340502477,1729364321231,150.0,0.00027,60]
[340502478,1729364342961,1272.43,0.00010264,2]
[340502479,1729364355474,653.32,9.029e-05,2]
[340502480,1729364417154,3573.48,0.00010204,2]
[340502481,1729364421809,1000.0,0.00010195,2]
[340502482,1729364443108,500.0,0.0001017,2]
[340502483,1729364447299,250.0,0.00010186,2]
[340502484,1729364455099,1505.88,0.00010222,2]
[340502485,1729364463275,349.03,0.00010261,2]
[340502486,1729364586739,2718.33,0.00010288,2]
[340502487,1729364621420,150.0,0.00027,60]
[340502488,1729364772302,560.26,0.00010335,2]
[340502489,1729364867148,250.0,0.00010231,2]
[340502495,1729364964845,250.0,0.00010304,2]
[340502499,1729364969853,620.65,8.336e-05,2]
[340502500,1729364970148,-620.65,0.000106,2]
[340502501,1729364970169,-334.64326347,0.00010699,2]
[340502502,1729364970190,-324.5863,0.0001079,2]
[340502503,1729364970210,-500.0,0.00010799,2]
[340502504,1729364970231,-500.0,0.00010799,2]
[340502505,1729364970252,-255.54425718,0.000108,2]
[340502512,1729365031963,-172.12,0.00010482,2]
[340502513,1729365031972,-1000.0,0.00010482,2]
[340502514,1729365031984,-56.09574282,0.000108,2]
[340502515,1729365031994,-451.21982598,0.00010873,2]
[340502516,1729365032123,-48.78017402,0.00010873,2]
[340502517,1729365032134,-204.64872921,0.00010873,2]
[340502518,1729365032145,-500.0,0.00010873,2]
[340502519,1729365032155,-921.13665465,0.0001089,2]
[340502520,1729365032168,-1999.34504607,0.0001089,2]
[340502521,1729365032183,-8730.64452305,0.0001089,2]
[340502522,1729365032194,-1539.6573271,0.0001089,2]
[340502533,1729365037982,-12052.74233246,0.00010646,2]
[340502534,1729365037994,-11847.25766754,0.00010646,2]
[340502535,1729365038004,-10413.54991465,0.0001089,2]
[340502536,1729365038014,-150.0,0.00010898,2]
[340502537,1729365038023,-9169.047,0.00010899,2]
[340502538,1729365038033,-175.634,0.00010899,2]
[340502539,1729365038042,-8461.24015005,0.00010899,2]
[340502540,1729365038052,-5191.49728111,0.000109,2]
[340502541,1729365038062,-8491.0719,0.000109,2]
[340502542,1729365038071,-1186.6985,0.000109,2]
[340502543,1729365038081,-9245.1333,0.000109,2]
[340502544,1729365038091,-997.05929097,0.000109,2]
[340502545,1729365038102,-3346.60650903,0.000109,2]
[340502546,1729365038112,-957.74741556,0.000109,2]
[340502547,1729365038123,-62311.07738444,0.000109,2]
[340502548,1729365038133,-1113.4946,0.000109,2]
[340502549,1729365038143,-262.82391547,0.000109,2]
[340502550,1729365038152,-2581.61786721,0.000109,2]
[340502551,1729365038167,-667.76472037,0.000109,2]
[340502552,1729365038178,-326.82220256,0.000109,2]
[340502553,1729365038189,-2250.96220986,0.000109,2]
[340502554,1729365038198,-159.73844962,0.000109,2]
[340502555,1729365038207,-172.07133922,0.000109,2]
[340502556,1729365038217,-1438.52385462,0.000109,2]
[340502557,1729365038226,-179.80401251,0.000109,2]
[340502558,1729365038235,-8561.16163026,0.000109,2]
[340502559,1729365038245,-442.53,0.00010947,2]
[340502560,1729365038254,-4038.83341761,0.00010947,2]
[340502561,1729365038283,-5961.15658239,0.00010947,2]
[340502562,1729365038292,-360.31,0.00010947,2]
[340502563,1729365038304,-150.99,0.00010947,2]
[340502564,1729365038314,-1292.19,0.00010947,2]
[340502565,1729365038325,-168.34,0.00010947,2]
[340502567,1729365038334,-150.99,0.00010947,2]
[340502568,1729365038344,-4241.73,0.00010947,2]
[340502569,1729365038354,-500.0,0.00010958,2]
[340502570,1729365038363,-263.45539276,0.00010958,2]
[340502571,1729365038372,-500.0,0.00010958,2]
[340502572,1729365038381,-500.0,0.00010958,2]
[340502573,1729365038390,-500.0,0.00010958,2]
[340502574,1729365038399,-500.0,0.00010958,2]
[340502575,1729365038408,-500.0,0.00010958,2]
[340502576,1729365038417,-500.0,0.00010958,2]
[340502577,1729365038427,-500.0,0.00010958,2]
[340502578,1729365038436,-354.76,0.00010958,2]
[340502579,1729365038446,-499.99,0.00010958,2]
[340502580,1729365038455,-2674.66,0.00010958,2]
[340502581,1729365038464,-331.05,0.00010958,2]
[340502582,1729365038474,-180.98,0.00010959,2]
[340502584,1729365038483,-150.0,0.00010959,2]
[340502600,1729365038638,-157.62,0.00010959,2]
[340502602,1729365038648,-1425.88,0.00010959,2]
[340502604,1729365038658,-1500.0,0.00010959,2]
[340502606,1729365038667,-7285.03,0.00010959,2]
[340502608,1729365038676,-250.0,0.00010959,2]
[340502610,1729365038686,-1492.78,0.00010959,2]
[340502611,1729365038695,-300.23573021,0.00010973,2]
[340502613,1729365038704,-501.29846828,0.00010973,2]
[340502615,1729365038714,-500.0,0.00010973,2]
[340502617,1729365038723,-499.99,0.00010973,2]
[340502619,1729365038732,-88794.58,0.00010977,2]
[340502621,1729365038741,-164.43,0.0001098,2]
[340502623,1729365038750,-299.99,0.0001098,2]
[340502625,1729365038759,-875.53310402,0.0001099,2]
[340502627,1729365038769,-875.53310402,0.0001099,2]
[340502628,1729365038778,-875.53310402,0.0001099,2]